[Event "*** Titled Tuesday Blitz"]
[Site "Chess.com"]
[Date "2020.04.14"]
[Round "9"]
[White "Tjktiger"]
[Black "Leonid_Starozhilov"]
[Result "0-1"]
[WhiteElo "2819"]
[BlackElo "2691"]
[TimeControl "180+1"]
[EndTime "11:44:56 PDT"]
[Termination "Leonid_Starozhilov won on time"]

1. c4 {[%clk 0:03:00.9]} 1... Nf6 {[%clk 0:03:00]} 2. Nc3 {[%clk 0:03:01.3]}
2... g6 {[%clk 0:03:00.3]} 3. e4 {[%clk 0:03:01]} 3... d6 {[%clk 0:03:00.4]} 4.
d4 {[%clk 0:03:01.3]} 4... Bg7 {[%clk 0:03:00.8]} 5. f3 {[%clk 0:03:01.9]} 5...
O-O {[%clk 0:03:00.8]} 6. Nge2 {[%clk 0:03:02.5]} 6... Nc6 {[%clk 0:02:57.6]} 7.
Be3 {[%clk 0:03:03]} 7... a6 {[%clk 0:02:58]} 8. Qd2 {[%clk 0:03:01.8]} 8... Na5
{[%clk 0:02:58.1]} 9. Nc1 {[%clk 0:03:01.2]} 9... Nd7 {[%clk 0:02:58.3]} 10. Nb3
{[%clk 0:03:00.8]} 10... c5 {[%clk 0:02:41.3]} 11. dxc5 {[%clk 0:03:00]} 11...
Nxb3 {[%clk 0:02:41.1]} 12. axb3 {[%clk 0:03:00.2]} 12... Nxc5 {[%clk
0:02:41.7]} 13. Ra3 {[%clk 0:03:00.6]} 13... Be6 {[%clk 0:02:38.4]} 14. Be2
{[%clk 0:02:58.6]} 14... f5 {[%clk 0:02:26.3]} 15. exf5 {[%clk 0:02:56.5]} 15...
gxf5 {[%clk 0:02:27.2]} 16. O-O {[%clk 0:02:56.3]} 16... Rc8 {[%clk 0:02:24.3]}
17. Re1 {[%clk 0:02:53.2]} 17... Kh8 {[%clk 0:02:00.7]} 18. Bf1 {[%clk 0:02:52]}
18... Bg8 {[%clk 0:01:52.8]} 19. Nd5 {[%clk 0:02:49.7]} 19... Bxd5 {[%clk
0:01:30.3]} 20. Qxd5 {[%clk 0:02:43]} 20... Qb6 {[%clk 0:01:02.7]} 21. Rb1
{[%clk 0:02:09.6]} 21... Qc6 {[%clk 0:00:51.4]} 22. Qd2 {[%clk 0:02:01.5]} 22...
Nd7 {[%clk 0:00:40.3]} 23. b4 {[%clk 0:01:59]} 23... Ne5 {[%clk 0:00:38.7]} 24.
b3 {[%clk 0:01:59.3]} 24... Bf6 {[%clk 0:00:33.3]} 25. b5 {[%clk 0:01:55.5]}
25... axb5 {[%clk 0:00:32.3]} 26. cxb5 {[%clk 0:01:56]} 26... Qd7 {[%clk
0:00:21.8]} 27. Kh1 {[%clk 0:01:53]} 27... Rg8 {[%clk 0:00:21.2]} 28. Ra7 {[%clk
0:01:47]} 28... Ra8 {[%clk 0:00:19]} 29. Ra4 {[%clk 0:01:42.7]} 29... Rac8
{[%clk 0:00:17.4]} 30. Rd1 {[%clk 0:01:39]} 30... Qe6 {[%clk 0:00:17.4]} 31. Qd5
{[%clk 0:01:37.7]} 31... Qxd5 {[%clk 0:00:17.4]} 32. Rxd5 {[%clk 0:01:38.6]}
32... Rc3 {[%clk 0:00:16.5]} 33. Bg1 {[%clk 0:01:08.2]} 33... Rc1 {[%clk
0:00:13.1]} 34. Be2 {[%clk 0:01:06.3]} 34... Re1 {[%clk 0:00:08.8]} 35. Ra2
{[%clk 0:01:00.9]} 35... Bh4 {[%clk 0:00:07.7]} 36. Rd1 {[%clk 0:01:00.1]} 36...
Rxd1 {[%clk 0:00:06.6]} 37. Bxd1 {[%clk 0:01:00.1]} 37... Rc8 {[%clk 0:00:06]}
38. Rc2 {[%clk 0:00:55.8]} 38... Rxc2 {[%clk 0:00:05.2]} 39. Bxc2 {[%clk
0:00:55.6]} 39... e6 {[%clk 0:00:03.5]} 40. Bd4 {[%clk 0:00:55.3]} 40... Kg8
{[%clk 0:00:03.1]} 41. f4 {[%clk 0:00:44.2]} 41... Nd7 {[%clk 0:00:03.4]} 42. b4
{[%clk 0:00:44]} 42... Kf7 {[%clk 0:00:03.7]} 43. Bd1 {[%clk 0:00:07.7]} 43...
Bd8 {[%clk 0:00:03.5]} 44. Bf3 {[%clk 0:00:07.1]} 44... d5 {[%clk 0:00:04.2]}
45. g4 {[%clk 0:00:07]} 45... fxg4 {[%clk 0:00:03.5]} 46. Bxg4 {[%clk
0:00:07.9]} 46... Be7 {[%clk 0:00:04.1]} 47. Bh5+ {[%clk 0:00:08.2]} 47... Kf8
{[%clk 0:00:04.7]} 48. Bg4 {[%clk 0:00:07.9]} 48... Kf7 {[%clk 0:00:04.1]} 49.
Bc3 {[%clk 0:00:08.5]} 49... Nf6 {[%clk 0:00:04.1]} 50. Bf3 {[%clk 0:00:08.9]}
50... Bd6 {[%clk 0:00:03.7]} 51. f5 {[%clk 0:00:07.6]} 51... e5 {[%clk
0:00:03.3]} 52. b6 {[%clk 0:00:06.8]} 52... e4 {[%clk 0:00:03.4]} 53. Be2 {[%clk
0:00:06.6]} 53... Nd7 {[%clk 0:00:02.8]} 54. Bd4 {[%clk 0:00:05.9]} 54... Bxb4
{[%clk 0:00:02.8]} 55. Bb5 {[%clk 0:00:03.6]} 55... Ke7 {[%clk 0:00:02.8]} 56.
Kg2 {[%clk 0:00:03]} 56... Bc5 {[%clk 0:00:03.3]} 57. Bxd7 {[%clk 0:00:02.6]}
57... Bxd4 {[%clk 0:00:03.2]} 58. Bc8 {[%clk 0:00:03.1]} 58... Bxb6 {[%clk
0:00:03.7]} 59. Bxb7 {[%clk 0:00:04]} 59... Kd6 {[%clk 0:00:04.3]} 60. f6 {[%clk
0:00:04.5]} 60... Ke5 {[%clk 0:00:04.6]} 61. f7 {[%clk 0:00:04.3]} 61... Bc5
{[%clk 0:00:05.2]} 62. Kf1 {[%clk 0:00:04.3]} 62... d4 {[%clk 0:00:05.8]} 63.
Ke2 {[%clk 0:00:04.7]} 63... d3+ {[%clk 0:00:06.3]} 64. Kd2 {[%clk 0:00:04.6]}
64... Bb4+ {[%clk 0:00:06.7]} 65. Ke3 {[%clk 0:00:04.5]} 65... Bc5+ {[%clk
0:00:06.5]} 66. Kd2 {[%clk 0:00:05.2]} 66... Kd4 {[%clk 0:00:06.7]} 67. Bc6
{[%clk 0:00:03.1]} 67... Bb4+ {[%clk 0:00:07]} 68. Kd1 {[%clk 0:00:03.2]} 68...
e3 {[%clk 0:00:07.6]} 69. Bf3 {[%clk 0:00:03.8]} 69... Bf8 {[%clk 0:00:06.7]}
70. Bg4 {[%clk 0:00:03.9]} 70... Bg7 {[%clk 0:00:06.2]} 71. Bh5 {[%clk
0:00:04.1]} 71... Bf8 {[%clk 0:00:06.1]} 72. Bg4 {[%clk 0:00:03.6]} 72... Bb4
{[%clk 0:00:06.5]} 73. Bh5 {[%clk 0:00:03.7]} 73... Ke5 {[%clk 0:00:06.6]} 74.
Bg4 {[%clk 0:00:04.1]} 74... Kf4 {[%clk 0:00:07]} 75. Bh5 {[%clk 0:00:04.7]}
75... Kg5 {[%clk 0:00:06.5]} 76. Bf3 {[%clk 0:00:04.4]} 76... Kh4 {[%clk
0:00:06.9]} 77. Kc1 {[%clk 0:00:03.7]} 77... e2 {[%clk 0:00:06]} 78. Bxe2 {[%clk
0:00:03.6]} 78... dxe2 {[%clk 0:00:06.4]} 79. f8=Q {[%clk 0:00:03.6]} 79...
e1=Q+ {[%clk 0:00:06.4]} 80. Kc2 {[%clk 0:00:02.4]} 80... Bxf8 {[%clk
0:00:07.3]} 0-1

[Event "*** Titled Tuesday Blitz"]
[Site "Chess.com"]
[Date "2020.04.14"]
[Round "9"]
[White "ENEASZ"]
[Black "Trickov"]
[Result "1-0"]
[WhiteElo "2497"]
[BlackElo "2282"]
[TimeControl "180+1"]
[EndTime "11:44:57 PDT"]
[Termination "ENEASZ won on time"]

1. e4 {[%clk 0:03:00.9]} 1... c5 {[%clk 0:02:32]} 2. c3 {[%clk 0:02:58]} 2...
Nf6 {[%clk 0:02:31.1]} 3. e5 {[%clk 0:02:58.1]} 3... Nd5 {[%clk 0:02:30.5]} 4.
d4 {[%clk 0:02:59]} 4... cxd4 {[%clk 0:02:30.2]} 5. cxd4 {[%clk 0:02:59.9]} 5...
Nc6 {[%clk 0:02:29.8]} 6. Nf3 {[%clk 0:02:59.5]} 6... d6 {[%clk 0:02:29.8]} 7.
Nc3 {[%clk 0:02:59.2]} 7... dxe5 {[%clk 0:02:29.6]} 8. dxe5 {[%clk 0:02:56.7]}
8... Nxc3 {[%clk 0:02:28]} 9. Qxd8+ {[%clk 0:02:56.4]} 9... Nxd8 {[%clk
0:02:27.8]} 10. bxc3 {[%clk 0:02:57.3]} 10... e6 {[%clk 0:02:27.6]} 11. Bb5+
{[%clk 0:02:37.4]} 11... Nc6 {[%clk 0:02:25.9]} 12. Bxc6+ {[%clk 0:02:26.6]}
12... bxc6 {[%clk 0:02:24.8]} 13. O-O {[%clk 0:02:27.5]} 13... Ba6 {[%clk
0:02:19.3]} 14. Re1 {[%clk 0:02:21.9]} 14... Be7 {[%clk 0:02:12.4]} 15. Bg5
{[%clk 0:02:19.8]} 15... Ba3 {[%clk 0:01:50.3]} 16. Rab1 {[%clk 0:01:59.3]}
16... O-O {[%clk 0:01:43.1]} 17. Rb3 {[%clk 0:01:51.4]} 17... Bc5 {[%clk
0:01:40.6]} 18. Nd4 {[%clk 0:01:51.4]} 18... Bc4 {[%clk 0:01:33.7]} 19. Rb2
{[%clk 0:01:49.1]} 19... Ba3 {[%clk 0:01:31.1]} 20. Rb7 {[%clk 0:01:39]} 20...
h6 {[%clk 0:01:19.2]} 21. Be7 {[%clk 0:01:29.5]} 21... Bxe7 {[%clk 0:01:17]} 22.
Rxe7 {[%clk 0:01:30.4]} 22... Bxa2 {[%clk 0:01:16.9]} 23. Ra1 {[%clk 0:01:23.7]}
23... Bd5 {[%clk 0:01:15.8]} 24. Raxa7 {[%clk 0:01:24.3]} 24... Rxa7 {[%clk
0:01:15.5]} 25. Rxa7 {[%clk 0:01:25.1]} 25... c5 {[%clk 0:01:15.7]} 26. Nc2
{[%clk 0:01:01.3]} 26... Rb8 {[%clk 0:01:13.8]} 27. h3 {[%clk 0:00:45.1]} 27...
Rb1+ {[%clk 0:01:10.4]} 28. Kh2 {[%clk 0:00:45.2]} 28... Rc1 {[%clk 0:01:10.1]}
29. Ne3 {[%clk 0:00:42.3]} 29... Rxc3 {[%clk 0:01:09.6]} 30. Rd7 {[%clk
0:00:42.2]} 30... Be4 {[%clk 0:01:05.9]} 31. g4 {[%clk 0:00:39]} 31... Rc1
{[%clk 0:00:53.9]} 32. Rd8+ {[%clk 0:00:35.4]} 32... Kh7 {[%clk 0:00:53]} 33.
Rd7 {[%clk 0:00:36.3]} 33... Bg6 {[%clk 0:00:52]} 34. h4 {[%clk 0:00:36.1]}
34... h5 {[%clk 0:00:52.1]} 35. gxh5 {[%clk 0:00:24.7]} 35... Bxh5 {[%clk
0:00:51]} 36. Rc7 {[%clk 0:00:25.3]} 36... Bg6 {[%clk 0:00:49.2]} 37. Kg3 {[%clk
0:00:25.7]} 37... Kh6 {[%clk 0:00:49.1]} 38. Kf4 {[%clk 0:00:23.7]} 38... Kh5
{[%clk 0:00:48.4]} 39. Rc8 {[%clk 0:00:19.4]} 39... Bh7 {[%clk 0:00:37.9]} 40.
Rh8 {[%clk 0:00:17.4]} 40... Kg6 {[%clk 0:00:37.9]} 41. h5+ {[%clk 0:00:17.6]}
41... Kh6 {[%clk 0:00:37.4]} 42. Ng4+ {[%clk 0:00:17.9]} 42... Kxh5 {[%clk
0:00:37.5]} 43. Rxh7+ {[%clk 0:00:18.8]} 43... Kg6 {[%clk 0:00:37.8]} 44. Rh8
{[%clk 0:00:16.9]} 44... Rc4+ {[%clk 0:00:36.5]} 45. Kg3 {[%clk 0:00:16.6]}
45... Re4 {[%clk 0:00:32]} 46. f3 {[%clk 0:00:10.3]} 46... Re1 {[%clk
0:00:28.8]} 47. Rc8 {[%clk 0:00:10.9]} 47... Rc1 {[%clk 0:00:26.8]} 48. Kf4
{[%clk 0:00:08.4]} 48... Rc4+ {[%clk 0:00:24.4]} 49. Kg3 {[%clk 0:00:08.8]}
49... Rc1 {[%clk 0:00:22.7]} 50. Rc7 {[%clk 0:00:08.9]} 50... Rc4 {[%clk
0:00:21.1]} 51. Nf2 {[%clk 0:00:07.3]} 51... f6 {[%clk 0:00:19.4]} 52. exf6
{[%clk 0:00:07]} 52... gxf6 {[%clk 0:00:19.7]} 53. Ne4 {[%clk 0:00:07.6]} 53...
f5 {[%clk 0:00:14.4]} 54. Nxc5 {[%clk 0:00:07.7]} 54... Rc1 {[%clk 0:00:12.5]}
55. Nxe6 {[%clk 0:00:06.9]} 55... Rg1+ {[%clk 0:00:12.4]} 56. Kf2 {[%clk
0:00:07.2]} 56... Ra1 {[%clk 0:00:12.3]} 57. Nf4+ {[%clk 0:00:06.9]} 57... Kg5
{[%clk 0:00:11.9]} 58. Ne2 {[%clk 0:00:07.3]} 58... Ra2 {[%clk 0:00:11.3]} 59.
Rc8 {[%clk 0:00:07.9]} 59... Kf6 {[%clk 0:00:10.9]} 60. Rg8 {[%clk 0:00:08.5]}
60... Kf7 {[%clk 0:00:10.9]} 61. Rc8 {[%clk 0:00:08.3]} 61... Kf6 {[%clk
0:00:08.9]} 62. Rf8+ {[%clk 0:00:08.4]} 62... Ke6 {[%clk 0:00:08.2]} 63. Ke3
{[%clk 0:00:08.3]} 63... Ra3+ {[%clk 0:00:06.7]} 64. Kf4 {[%clk 0:00:08.3]}
64... Ra4+ {[%clk 0:00:06.8]} 65. Kg5 {[%clk 0:00:08.4]} 65... Ke7 {[%clk
0:00:06.4]} 66. Rxf5 {[%clk 0:00:08]} 66... Ra2 {[%clk 0:00:06.3]} 67. Ng3
{[%clk 0:00:07.4]} 67... Ke6 {[%clk 0:00:05.7]} 68. Kg4 {[%clk 0:00:06.5]} 68...
Ra4+ {[%clk 0:00:04.6]} 69. Rf4 {[%clk 0:00:06.4]} 69... Ra5 {[%clk 0:00:04.8]}
70. Re4+ {[%clk 0:00:07.1]} 70... Kf6 {[%clk 0:00:04.6]} 71. f4 {[%clk
0:00:07.6]} 71... Kf7 {[%clk 0:00:04.3]} 72. f5 {[%clk 0:00:06.9]} 72... Ra1
{[%clk 0:00:04.1]} 73. Kg5 {[%clk 0:00:06.6]} 73... Rg1 {[%clk 0:00:03.6]} 74.
Kg4 {[%clk 0:00:06.8]} 74... Ra1 {[%clk 0:00:03.3]} 75. Rb4 {[%clk 0:00:07]}
75... Ra3 {[%clk 0:00:02.5]} 76. Rb7+ {[%clk 0:00:06.9]} 76... Kf6 {[%clk
0:00:02.6]} 77. Rb6+ {[%clk 0:00:07.8]} 77... Kf7 {[%clk 0:00:02.6]} 78. Ne4
{[%clk 0:00:08.1]} 78... Ra4 {[%clk 0:00:02.1]} 79. Kf4 {[%clk 0:00:08.7]} 79...
Kf8 {[%clk 0:00:01.8]} 80. Ke5 {[%clk 0:00:08.4]} 80... Ra5+ {[%clk 0:00:02]}
81. Kf6 {[%clk 0:00:08.4]} 81... Ke8 {[%clk 0:00:02.1]} 82. Ng5 {[%clk
0:00:07.8]} 82... Ra7 {[%clk 0:00:01.2]} 83. Ne6 {[%clk 0:00:07.7]} 1-0

[Event "*** Titled Tuesday Blitz"]
[Site "Chess.com"]
[Date "2020.04.14"]
[Round "9"]
[White "Oligan22"]
[Black "TheCount"]
[Result "1/2-1/2"]
[WhiteElo "2418"]
[BlackElo "2595"]
[TimeControl "180+1"]
[EndTime "11:45:09 PDT"]
[Termination "Game drawn by 50-move rule"]

1. e4 {[%clk 0:03:00.9]} 1... c5 {[%clk 0:02:57.3]} 2. Nf3 {[%clk 0:03:00.8]}
2... Nc6 {[%clk 0:02:55.8]} 3. d4 {[%clk 0:03:00.9]} 3... cxd4 {[%clk
0:02:55.4]} 4. Nxd4 {[%clk 0:03:01.8]} 4... Qb6 {[%clk 0:02:55.6]} 5. Nb3 {[%clk
0:02:59]} 5... Nf6 {[%clk 0:02:54.9]} 6. Nc3 {[%clk 0:02:58]} 6... e6 {[%clk
0:02:54.9]} 7. Bd3 {[%clk 0:02:58]} 7... a6 {[%clk 0:02:53.2]} 8. Be3 {[%clk
0:02:56.3]} 8... Qc7 {[%clk 0:02:53.4]} 9. f4 {[%clk 0:02:51.5]} 9... d6 {[%clk
0:02:52]} 10. O-O {[%clk 0:02:49.9]} 10... Be7 {[%clk 0:02:52.4]} 11. Qf3 {[%clk
0:02:50]} 11... O-O {[%clk 0:02:49]} 12. g4 {[%clk 0:02:50]} 12... Nd7 {[%clk
0:02:48.9]} 13. g5 {[%clk 0:02:45.1]} 13... Re8 {[%clk 0:02:46.6]} 14. Qh5
{[%clk 0:02:39.6]} 14... g6 {[%clk 0:02:44.6]} 15. Qh6 {[%clk 0:02:35.8]} 15...
Bf8 {[%clk 0:02:42.6]} 16. Qh4 {[%clk 0:02:35.4]} 16... Bg7 {[%clk 0:02:43.2]}
17. Rf3 {[%clk 0:02:32.2]} 17... Nb4 {[%clk 0:02:36.1]} 18. Raf1 {[%clk
0:01:58]} 18... Nf8 {[%clk 0:02:29.7]} 19. a3 {[%clk 0:01:40.7]} 19... Nxd3
{[%clk 0:02:29.5]} 20. cxd3 {[%clk 0:01:41.6]} 20... b5 {[%clk 0:02:30.3]} 21.
Nd4 {[%clk 0:01:21.7]} 21... Bb7 {[%clk 0:02:29.5]} 22. Nde2 {[%clk 0:01:05.2]}
22... d5 {[%clk 0:02:09.3]} 23. Rh3 {[%clk 0:00:53.1]} 23... dxe4 {[%clk
0:02:03.1]} 24. Nxe4 {[%clk 0:00:51.7]} 24... Bxe4 {[%clk 0:02:00.5]} 25. dxe4
{[%clk 0:00:52.6]} 25... Qc4 {[%clk 0:01:56.1]} 26. Nc3 {[%clk 0:00:49.5]} 26...
Red8 {[%clk 0:01:44.5]} 27. e5 {[%clk 0:00:48.1]} 27... Rd3 {[%clk 0:01:40]} 28.
Bb6 {[%clk 0:00:35.6]} 28... b4 {[%clk 0:01:23.5]} 29. axb4 {[%clk 0:00:27.7]}
29... Rxh3 {[%clk 0:01:23.3]} 30. Qxh3 {[%clk 0:00:28.6]} 30... Qxb4 {[%clk
0:01:23.9]} 31. Qe3 {[%clk 0:00:26.1]} 31... Qxb2 {[%clk 0:01:21.7]} 32. Rb1
{[%clk 0:00:25.7]} 32... Qc2 {[%clk 0:01:21.1]} 33. Rc1 {[%clk 0:00:24.5]} 33...
Qb3 {[%clk 0:01:17.1]} 34. Ne4 {[%clk 0:00:22.1]} 34... Qxe3+ {[%clk 0:01:04]}
35. Bxe3 {[%clk 0:00:23]} 35... a5 {[%clk 0:01:02.4]} 36. Nc5 {[%clk 0:00:19.4]}
36... a4 {[%clk 0:00:57.6]} 37. Ra1 {[%clk 0:00:19.4]} 37... a3 {[%clk
0:00:58.1]} 38. Ra2 {[%clk 0:00:19.7]} 38... Ra5 {[%clk 0:00:46.7]} 39. Kf2
{[%clk 0:00:19.7]} 39... h6 {[%clk 0:00:30.2]} 40. h4 {[%clk 0:00:19.5]} 40...
hxg5 {[%clk 0:00:26.1]} 41. hxg5 {[%clk 0:00:20.4]} 41... Nh7 {[%clk 0:00:19.2]}
42. Nd7 {[%clk 0:00:20.4]} 42... Bf8 {[%clk 0:00:17]} 43. Nxf8 {[%clk
0:00:18.7]} 43... Nxf8 {[%clk 0:00:16.9]} 44. Bc1 {[%clk 0:00:18.8]} 44... Ra4
{[%clk 0:00:16.6]} 45. Kf3 {[%clk 0:00:17.5]} 45... Rc4 {[%clk 0:00:16.9]} 46.
Bxa3 {[%clk 0:00:17.3]} 46... Ra4 {[%clk 0:00:17.2]} 47. Ra1 {[%clk 0:00:16.7]}
47... Nd7 {[%clk 0:00:17.6]} 48. Bb2 {[%clk 0:00:17.1]} 48... Rxa1 {[%clk
0:00:17.9]} 49. Bxa1 {[%clk 0:00:18]} 49... Kf8 {[%clk 0:00:18]} 50. Bc3 {[%clk
0:00:16.7]} 50... Ke8 {[%clk 0:00:18.2]} 51. Bb4 {[%clk 0:00:16.9]} 51... Nb6
{[%clk 0:00:18.2]} 52. Ke4 {[%clk 0:00:17]} 52... Kd7 {[%clk 0:00:18.1]} 53. Bc5
{[%clk 0:00:16.9]} 53... Kc6 {[%clk 0:00:17.3]} 54. Be3 {[%clk 0:00:16.9]} 54...
Nc4 {[%clk 0:00:17.1]} 55. Bc1 {[%clk 0:00:17]} 55... Kc5 {[%clk 0:00:17]} 56.
Kd3 {[%clk 0:00:16.9]} 56... Kb4 {[%clk 0:00:15.5]} 57. Kc2 {[%clk 0:00:15.4]}
57... Ka4 {[%clk 0:00:13.7]} 58. Kc3 {[%clk 0:00:15.6]} 58... Kb5 {[%clk
0:00:14]} 59. Kd4 {[%clk 0:00:15.1]} 59... Kb4 {[%clk 0:00:13.9]} 60. Kd3 {[%clk
0:00:14.6]} 60... Kb3 {[%clk 0:00:14.3]} 61. Kd4 {[%clk 0:00:14.5]} 61... Kb4
{[%clk 0:00:09.8]} 62. Kd3 {[%clk 0:00:13.7]} 62... Kc5 {[%clk 0:00:10.2]} 63.
Kc3 {[%clk 0:00:13.4]} 63... Kd5 {[%clk 0:00:09.9]} 64. Kd3 {[%clk 0:00:13.6]}
64... Nb6 {[%clk 0:00:06.7]} 65. Be3 {[%clk 0:00:13.5]} 65... Na4 {[%clk
0:00:06.6]} 66. Ba7 {[%clk 0:00:13.4]} 66... Nb2+ {[%clk 0:00:05.9]} 67. Ke3
{[%clk 0:00:13.7]} 67... Nc4+ {[%clk 0:00:06.3]} 68. Kd3 {[%clk 0:00:13.8]}
68... Na5 {[%clk 0:00:06.6]} 69. Ke3 {[%clk 0:00:13.8]} 69... Nc6 {[%clk
0:00:07.2]} 70. Bb6 {[%clk 0:00:14.2]} 70... Kc4 {[%clk 0:00:07.1]} 71. Ke4
{[%clk 0:00:14.2]} 71... Nb4 {[%clk 0:00:06.7]} 72. Ba7 {[%clk 0:00:13.8]} 72...
Na2 {[%clk 0:00:06.7]} 73. Bb6 {[%clk 0:00:13.6]} 73... Nc3+ {[%clk 0:00:06.8]}
74. Kf3 {[%clk 0:00:13.5]} 74... Kd3 {[%clk 0:00:06.7]} 75. Ba5 {[%clk
0:00:13.4]} 75... Ne4 {[%clk 0:00:06.3]} 76. Bc7 {[%clk 0:00:13]} 76... Nd2+
{[%clk 0:00:06.3]} 77. Kg4 {[%clk 0:00:12.8]} 77... Ke4 {[%clk 0:00:06.6]} 78.
Ba5 {[%clk 0:00:12.6]} 78... Nc4 {[%clk 0:00:06.2]} 79. Be1 {[%clk 0:00:12.5]}
79... Ne3+ {[%clk 0:00:06.3]} 80. Kg3 {[%clk 0:00:12.2]} 80... Nf5+ {[%clk
0:00:05.9]} 81. Kg4 {[%clk 0:00:12.5]} 81... Ne3+ {[%clk 0:00:06.3]} 82. Kg3
{[%clk 0:00:12.9]} 82... Nd5 {[%clk 0:00:06.6]} 83. Bd2 {[%clk 0:00:12.7]} 83...
Nb6 {[%clk 0:00:06.1]} 84. Bc1 {[%clk 0:00:12.1]} 84... Nc4 {[%clk 0:00:07]} 85.
Kg4 {[%clk 0:00:12]} 85... Kd3 {[%clk 0:00:07.5]} 86. Kf3 {[%clk 0:00:12]} 86...
Kc2 {[%clk 0:00:07.8]} 87. Be3 {[%clk 0:00:12.2]} 87... Kd3 {[%clk 0:00:07.1]}
88. Ba7 {[%clk 0:00:11.7]} 88... Nd2+ {[%clk 0:00:06.8]} 89. Kg4 {[%clk
0:00:11.4]} 89... Ke4 {[%clk 0:00:07.7]} 90. Bb6 {[%clk 0:00:11.2]} 90... Nf1
{[%clk 0:00:07.7]} 91. Ba5 {[%clk 0:00:11.2]} 91... Ne3+ {[%clk 0:00:07.4]} 92.
Kg3 {[%clk 0:00:11.5]} 92... Nf5+ {[%clk 0:00:07]} 93. Kg4 {[%clk 0:00:11.8]}
93... Ke3 {[%clk 0:00:07.5]} 94. Bb4 {[%clk 0:00:11.1]} 94... Kf2 {[%clk
0:00:07.5]} 95. Bd2 {[%clk 0:00:10.8]} 95... Ke2 {[%clk 0:00:07.5]} 96. Bc1
{[%clk 0:00:10.8]} 96... Kf2 {[%clk 0:00:07.5]} 97. Bd2 {[%clk 0:00:10.8]} 97...
Kg2 {[%clk 0:00:08.4]} 98. Bc1 {[%clk 0:00:10.9]} 98... Nd4 {[%clk 0:00:08.6]}
99. Bb2 {[%clk 0:00:10.5]} 1/2-1/2